Workbook

Sheet الاساسية
A1: 1 | B1: 2 | C1: 3 | D1: 4 | E1: 5 | F1: 6 | G1: 7 | H1: 8 | I1: 9 | J1: 10 | K1: 11 | L1: 12 | M1: 13 | N1: 14 | O1: 15
B2: اعضاء مسددين اشتراكات | H2: =TODAY() -> 2021-10-12
A3: م | B3: الاسم | C3: النشاط | D3: قيمة الاشتراك | E3: مدة الاشتراك | F3: بداية النشاط | G3: نهاية الاشتراك | H3: التاريخ اليومى | I3: بالايام | J3: الحالة | K3: مسدد 1 | L3: بتاريخ | M3: مسدد 2 | N3: بتاريخ | O3: باقى
A4: 12 | B4: عوض21 | C4: سباحة | D4: 1000 | E4: 5 | F4: 2021-08-20 | G4: =IF(B4="","",F4+E4) -> 2021-08-25 | H4: =IF(B4="","",$H$2) -> 2021-10-12 | I4: =IF(B4="","",G4-H4) -> -48 | J4: =IF(B4="","",IF(H4>=G4,"انتهى","مجدد")) -> انتهى | K4: 800 | L4: 2021-05-02 | M4: 200 | N4: 2021-05-11 | O4: =D4-(K4+M4) -> 0 | P4: 1
A5: 12 | B5: عوض21 | C5: سباحة | D5: 1000 | E5: 5 | F5: 2021-08-20 | G5: 2021-08-25 | H5: 2021-10-12 | I5: -48 | J5: انتهى | O5: 1000 | P5: 2
A6: 13 | B6: عوض21 | C6: سباحة | D6: 1000 | E6: 5 | F6: 2021-05-30 | G6: 2021-06-04 | H6: 2021-10-12 | I6: -130 | J6: انتهى | O6: 1000 | P6: 3
A7: 14 | B7: عوض21 | C7: سباحة | D7: 1000 | E7: 5 | F7: 2021-05-30 | G7: 2021-06-04 | H7: 2021-10-12 | I7: -130 | J7: انتهى | O7: 1000
A8: 16 | B8: عوض23 | C8: سباحة | D8: 1000 | E8: 5 | F8: 2021-06-01 | G8: 2021-06-06 | H8: 2021-10-12 | I8: -128 | J8: انتهى | O8: 1000
A9: 17 | B9: عوض24 | C9: سباحة | D9: 1000 | E9: 5 | F9: 2021-06-02 | G9: 2021-06-07 | H9: 2021-10-12 | I9: -127 | J9: انتهى | K9: 1000 | O9: 0
A10: 18 | B10: عوض25 | C10: سباحة | D10: 1000 | E10: 5 | F10: 2021-06-03 | G10: 2021-06-08 | H10: 2021-10-12 | I10: -126 | J10: انتهى | O10: 1000
A11: 19 | B11: عوض26 | C11: سباحة | D11: 1000 | E11: 5 | F11: 2021-06-04 | G11: 2021-06-09 | H11: 2021-10-12 | I11: -125 | J11: انتهى | O11: 1000
A12: 20 | B12: عوض21 | C12: سباحة | D12: 1000 | E12: 5 | F12: 2021-06-30 | G12: 2021-07-05 | H12: 2021-10-12 | I12: -99 | J12: انتهى | O12: 1000
A13: 20 | B13: عوض27 | C13: سباحة | D13: 1000 | E13: 5 | F13: 2021-06-05 | G13: 2021-06-10 | H13: 2021-10-12 | I13: -124 | J13: انتهى | O13: 1000
A14: 21 | B14: عوض28 | C14: سباحة | D14: 1000 | E14: 5 | F14: 2021-06-06 | G14: 2021-06-11 | H14: 2021-10-12 | I14: -123 | J14: انتهى | O14: 1000
A15: 22 | B15: عوض29 | C15: سباحة | D15: 1000 | E15: 5 | F15: 2021-06-07 | G15: 2021-06-12 | H15: 2021-10-12 | I15: -122 | J15: انتهى | O15: 1000
A16: 23 | B16: عوض30 | C16: سباحة | D16: 1000 | E16: 5 | F16: 2021-06-08 | G16: 2021-06-13 | H16: 2021-10-12 | I16: -121 | J16: انتهى | O16: 1000
A17: 24 | B17: عوض31 | C17: سباحة | D17: 1000 | E17: 5 | F17: 2021-06-09 | G17: 2021-06-14 | H17: 2021-10-12 | I17: -120 | J17: انتهى | O17: 1000
A18: 25 | B18: عوض32 | C18: سباحة | D18: 1000 | E18: 5 | F18: 2021-06-10 | G18: 2021-06-15 | H18: 2021-10-12 | I18: -119 | J18: انتهى | O18: 1000
A19: 26 | B19: عوض33 | C19: سباحة | D19: 1000 | E19: 5 | F19: 2021-06-11 | G19: 2021-06-16 | H19: 2021-10-12 | I19: -118 | J19: انتهى | O19: 1000
A20: 27 | B20: عوض34 | C20: سباحة | D20: 1000 | E20: 5 | F20: 2021-06-12 | G20: 2021-06-17 | H20: 2021-10-12 | I20: -117 | J20: انتهى | O20: 1000
A21: 28 | B21: عوض35 | C21: سباحة | D21: 1000 | E21: 5 | F21: 2021-06-13 | G21: 2021-06-18 | H21: 2021-10-12 | I21: -116 | J21: انتهى | O21: 1000
A22: 29 | B22: عوض36 | C22: سباحة | D22: 1000 | E22: 5 | F22: 2021-06-14 | G22: 2021-06-19 | H22: 2021-10-12 | I22: -115 | J22: انتهى | O22: 1000
A23: 30 | B23: عوض37 | C23: سباحة | D23: 1000 | E23: 5 | F23: 2021-06-15 | G23: 2021-06-20 | H23: 2021-10-12 | I23: -114 | J23: انتهى | O23: 1000
A24: 31 | B24: عوض38 | C24: سباحة | D24: 1000 | E24: 5 | F24: 2021-06-16 | G24: 2021-06-21 | H24: 2021-10-12 | I24: -113 | J24: انتهى | O24: 1000
A25: 32 | B25: عوض39 | C25: سباحة | D25: 1000 | E25: 5 | F25: 2021-06-17 | G25: 2021-06-22 | H25: 2021-10-12 | I25: -112 | J25: انتهى | O25: 1000
A26: 33 | B26: عوض40 | C26: سباحة | D26: 1000 | E26: 5 | F26: 2021-06-18 | G26: 2021-06-23 | H26: 2021-10-12 | I26: -111 | J26: انتهى | O26: 1000
A27: 34 | B27: عوض41 | C27: سباحة | D27: 1000 | E27: 5 | F27: 2021-06-19 | G27: 2021-06-24 | H27: 2021-10-12 | I27: -110 | J27: انتهى | O27: 1000
A28: 35 | B28: عوض42 | C28: سباحة | D28: 1000 | E28: 5 | F28: 2021-06-20 | G28: 2021-06-25 | H28: 2021-10-12 | I28: -109 | J28: انتهى | O28: 1000
A29: 36 | B29: عوض43 | C29: سباحة | D29: 1000 | E29: 5 | F29: 2021-06-21 | G29: 2021-06-26 | H29: 2021-10-12 | I29: -108 | J29: انتهى | O29: 1000
A30: 37 | B30: عوض44 | C30: سباحة | D30: 1000 | E30: 5 | F30: 2021-06-22 | G30: 2021-06-27 | H30: 2021-10-12 | I30: -107 | J30: انتهى | O30: 1000
A31: 38 | B31: عوض45 | C31: سباحة | D31: 1000 | E31: 5 | F31: 2021-06-23 | G31: 2021-06-28 | H31: 2021-10-12 | I31: -106 | J31: انتهى | O31: 1000
A32: 39 | B32: عوض46 | C32: سباحة | D32: 1000 | E32: 5 | F32: 2021-06-24 | G32: 2021-06-29 | H32: 2021-10-12 | I32: -105 | J32: انتهى | O32: 1000
A33: 40 | B33: عوض47 | C33: سباحة | D33: 1000 | E33: 5 | F33: 2021-06-25 | G33: 2021-06-30 | H33: 2021-10-12 | I33: -104 | J33: انتهى | O33: 1000
A34: 41 | B34: عوض48 | C34: سباحة | D34: 1000 | E34: 5 | F34: 2021-06-26 | G34: 2021-07-01 | H34: 2021-10-12 | I34: -103 | J34: انتهى | O34: 1000
A35: 42 | B35: عوض49 | C35: سباحة | D35: 1000 | E35: 5 | F35: 2021-06-27 | G35: 2021-07-02 | H35: 2021-10-12 | I35: -102 | J35: انتهى | O35: 1000
A36: 43 | B36: عوض50 | C36: سباحة | D36: 1000 | E36: 5 | F36: 2021-06-28 | G36: 2021-07-03 | H36: 2021-10-12 | I36: -101 | J36: انتهى | O36: 1000
A37: 44 | B37: عوض51 | C37: سباحة | D37: 1000 | E37: 5 | F37: 2021-06-29 | G37: 2021-07-04 | H37: 2021-10-12 | I37: -100 | J37: انتهى | O37: 1000
A38: 45 | B38: عوض52 | C38: سباحة | D38: 1000 | E38: 5 | F38: 2021-06-30 | G38: 2021-07-05 | H38: 2021-10-12 | I38: -99 | J38: انتهى | O38: 1000
A39: 46 | B39: عوض53 | C39: سباحة | D39: 1000 | E39: 5 | F39: 2021-07-01 | G39: 2021-07-06 | H39: 2021-10-12 | I39: -98 | J39: انتهى | O39: 1000
A40: 47 | B40: عوض54 | C40: سباحة | D40: 1000 | E40: 5 | F40: 2021-07-02 | G40: 2021-07-07 | H40: 2021-10-12 | I40: -97 | J40: انتهى | O40: 1000
A41: 48 | B41: عوض55 | C41: سباحة | D41: 1000 | E41: 5 | F41: 2021-07-03 | G41: 2021-07-08 | H41: 2021-10-12 | I41: -96 | J41: انتهى | O41: 1000
A42: 49 | B42: عوض56 | C42: سباحة | D42: 1000 | E42: 5 | F42: 2021-07-04 | G42: 2021-07-09 | H42: 2021-10-12 | I42: -95 | J42: انتهى | O42: 1000
A43: 50 | B43: عوض57 | C43: سباحة | D43: 1000 | E43: 5 | F43: 2021-07-05 | G43: 2021-07-10 | H43: 2021-10-12 | I43: -94 | J43: انتهى | O43: 1000
A44: 51 | B44: عوض58 | C44: سباحة | D44: 1000 | E44: 5 | F44: 2021-07-06 | G44: 2021-07-11 | H44: 2021-10-12 | I44: -93 | J44: انتهى | O44: 1000
A45: 52 | B45: عوض59 | C45: سباحة | D45: 1000 | E45: 5 | F45: 2021-07-07 | G45: 2021-07-12 | H45: 2021-10-12 | I45: -92 | J45: انتهى | O45: 1000
A46: 53 | B46: عوض60 | C46: سباحة | D46: 1000 | E46: 5 | F46: 2021-07-08 | G46: 2021-07-13 | H46: 2021-10-12 | I46: -91 | J46: انتهى | O46: 1000
A47: 54 | B47: عوض61 | C47: سباحة | D47: 1000 | E47: 5 | F47: 2021-07-09 | G47: 2021-07-14 | H47: 2021-10-12 | I47: -90 | J47: انتهى | O47: 1000
A48: 55 | B48: عوض62 | C48: سباحة | D48: 1000 | E48: 5 | F48: 2021-07-10 | G48: 2021-07-15 | H48: 2021-10-12 | I48: -89 | J48: انتهى | O48: 1000
A49: 56 | B49: عوض63 | C49: سباحة | D49: 1000 | E49: 5 | F49: 2021-07-11 | G49: 2021-07-16 | H49: 2021-10-12 | I49: -88 | J49: انتهى | O49: 1000
A50: 57 | B50: عوض64 | C50: سباحة | D50: 1000 | E50: 5 | F50: 2021-07-12 | G50: 2021-07-17 | H50: 2021-10-12 | I50: -87 | J50: انتهى | O50: 1000
A51: 58 | B51: عوض65 | C51: سباحة | D51: 1000 | E51: 5 | F51: 2021-07-13 | G51: 2021-07-18 | H51: 2021-10-12 | I51: -86 | J51: انتهى | O51: 1000
A52: 59 | B52: عوض66 | C52: سباحة | D52: 1000 | E52: 5 | F52: 2021-07-14 | G52: 2021-07-19 | H52: 2021-10-12 | I52: -85 | J52: انتهى | O52: 1000
A53: 60 | B53: عوض67 | C53: سباحة | D53: 1000 | E53: 5 | F53: 2021-07-15 | G53: 2021-07-20 | H53: 2021-10-12 | I53: -84 | J53: انتهى | O53: 1000
A54: 61 | B54: عوض68 | C54: سباحة | D54: 1000 | E54: 5 | F54: 2021-07-16 | G54: 2021-07-21 | H54: 2021-10-12 | I54: -83 | J54: انتهى | O54: 1000
A55: 62 | B55: عوض69 | C55: سباحة | D55: 1000 | E55: 5 | F55: 2021-07-17 | G55: 2021-07-22 | H55: 2021-10-12 | I55: -82 | J55: انتهى | O55: 1000
A56: 63 | B56: عوض70 | C56: سباحة | D56: 1000 | E56: 5 | F56: 2021-07-18 | G56: 2021-07-23 | H56: 2021-10-12 | I56: -81 | J56: انتهى | O56: 1000
A57: 64 | B57: عوض71 | C57: سباحة | D57: 1000 | E57: 5 | F57: 2021-07-19 | G57: 2021-07-24 | H57: 2021-10-12 | I57: -80 | J57: انتهى | O57: 1000
A58: 65 | B58: عوض72 | C58: سباحة | D58: 1000 | E58: 5 | F58: 2021-07-20 | G58: 2021-07-25 | H58: 2021-10-12 | I58: -79 | J58: انتهى | O58: 1000
A59: 66 | B59: عوض73 | C59: سباحة | D59: 1000 | E59: 5 | F59: 2021-07-21 | G59: 2021-07-26 | H59: 2021-10-12 | I59: -78 | J59: انتهى | O59: 1000
A60: 67 | B60: عوض74 | C60: سباحة | D60: 1000 | E60: 5 | F60: 2021-07-22 | G60: 2021-07-27 | H60: 2021-10-12 | I60: -77 | J60: انتهى | O60: 1000
A61: 68 | B61: عوض75 | C61: سباحة | D61: 1000 | E61: 5 | F61: 2021-07-23 | G61: 2021-07-28 | H61: 2021-10-12 | I61: -76 | J61: انتهى | O61: 1000
A62: 69 | B62: عوض76 | C62: سباحة | D62: 1000 | E62: 5 | F62: 2021-07-24 | G62: 2021-07-29 | H62: 2021-10-12 | I62: -75 | J62: انتهى | O62: 1000
A63: 70 | B63: عوض77 | C63: سباحة | D63: 1000 | E63: 5 | F63: 2021-07-25 | G63: 2021-07-30 | H63: 2021-10-12 | I63: -74 | J63: انتهى | O63: 1000
A64: 71 | B64: عوض78 | C64: سباحة | D64: 1000 | E64: 5 | F64: 2021-07-26 | G64: 2021-07-31 | H64: 2021-10-12 | I64: -73 | J64: انتهى | O64: 1000
A65: 72 | B65: عوض79 | C65: سباحة | D65: 1000 | E65: 5 | F65: 2021-07-27 | G65: 2021-08-01 | H65: 2021-10-12 | I65: -72 | J65: انتهى | O65: 1000
A66: 73 | B66: عوض80 | C66: سباحة | D66: 1000 | E66: 5 | F66: 2021-07-28 | G66: 2021-08-02 | H66: 2021-10-12 | I66: -71 | J66: انتهى | O66: 1000
A67: 74 | B67: عوض81 | C67: سباحة | D67: 1000 | E67: 5 | F67: 2021-07-29 | G67: 2021-08-03 | H67: 2021-10-12 | I67: -70 | J67: انتهى | O67: 1000
A68: 75 | B68: عوض82 | C68: سباحة | D68: 1000 | E68: 5 | F68: 2021-07-30 | G68: =IF(B68="","",F68+E68) -> 2021-08-04 | H68: =IF(B68="","",$H$2) -> 2021-10-12 | I68: =IF(B68="","",G68-H68) -> -69 | J68: =IF(B68="","",IF(H68>=G68,"انتهى","مجدد")) -> انتهى | O68: =D68-(K68+M68) -> 1000
A69: 76 | B69: عوض83 | C69: سباحة | D69: 1000 | E69: 5 | F69: 2021-07-31 | G69: 2021-08-05 | H69: 2021-10-12 | I69: -68 | J69: انتهى | O69: 1000
A70: 77 | B70: عوض84 | C70: سباحة | D70: 1000 | E70: 5 | F70: 2021-08-01 | G70: 2021-08-06 | H70: 2021-10-12 | I70: -67 | J70: انتهى | O70: 1000
A71: 78 | B71: عوض85 | C71: سباحة | D71: 1000 | E71: 5 | F71: 2021-08-02 | G71: 2021-08-07 | H71: 2021-10-12 | I71: -66 | J71: انتهى | O71: 1000
A72: 79 | B72: عوض86 | C72: سباحة | D72: 1000 | E72: 5 | F72: 2021-08-03 | G72: 2021-08-08 | H72: 2021-10-12 | I72: -65 | J72: انتهى | O72: 1000
A73: 80 | B73: عوض87 | C73: سباحة | D73: 1000 | E73: 5 | F73: 2021-08-04 | G73: 2021-08-09 | H73: 2021-10-12 | I73: -64 | J73: انتهى | O73: 1000
A74: 81 | B74: عوض88 | C74: سباحة | D74: 1000 | E74: 5 | F74: 2021-08-05 | G74: 2021-08-10 | H74: 2021-10-12 | I74: -63 | J74: انتهى | O74: 1000
A75: 82 | B75: عوض89 | C75: سباحة | D75: 1000 | E75: 5 | F75: 2021-08-06 | G75: 2021-08-11 | H75: 2021-10-12 | I75: -62 | J75: انتهى | O75: 1000
A76: 83 | B76: عوض90 | C76: سباحة | D76: 1000 | E76: 5 | F76: 2021-08-07 | G76: 2021-08-12 | H76: 2021-10-12 | I76: -61 | J76: انتهى | O76: 1000
A77: 84 | B77: عوض91 | C77: سباحة | D77: 1000 | E77: 5 | F77: 2021-08-08 | G77: 2021-08-13 | H77: 2021-10-12 | I77: -60 | J77: انتهى | O77: 1000
A78: 85 | B78: عوض92 | C78: سباحة | D78: 1000 | E78: 5 | F78: 2021-08-09 | G78: 2021-08-14 | H78: 2021-10-12 | I78: -59 | J78: انتهى | O78: 1000
A79: 86 | B79: عوض93 | C79: سباحة | D79: 1000 | E79: 5 | F79: 2021-08-10 | G79: 2021-08-15 | H79: 2021-10-12 | I79: -58 | J79: انتهى | O79: 1000
A80: 87 | B80: عوض94 | C80: سباحة | D80: 1000 | E80: 5 | F80: 2021-08-11 | G80: 2021-08-16 | H80: 2021-10-12 | I80: -57 | J80: انتهى | O80: 1000
A81: 88 | B81: عوض95 | C81: سباحة | D81: 1000 | E81: 5 | F81: 2021-08-12 | G81: 2021-08-17 | H81: 2021-10-12 | I81: -56 | J81: انتهى | O81: 1000
A82: 89 | B82: عوض96 | C82: سباحة | D82: 1000 | E82: 5 | F82: 2021-08-13 | G82: 2021-08-18 | H82: 2021-10-12 | I82: -55 | J82: انتهى | O82: 1000
A83: 90 | B83: عوض97 | C83: سباحة | D83: 1000 | E83: 5 | F83: 2021-08-14 | G83: 2021-08-19 | H83: 2021-10-12 | I83: -54 | J83: انتهى | O83: 1000
A84: 91 | B84: عوض98 | C84: سباحة | D84: 1000 | E84: 5 | F84: 2021-08-15 | G84: 2021-08-20 | H84: 2021-10-12 | I84: -53 | J84: انتهى | O84: 1000
A85: 92 | B85: عوض99 | C85: سباحة | D85: 1000 | E85: 5 | F85: 2021-08-16 | G85: 2021-08-21 | H85: 2021-10-12 | I85: -52 | J85: انتهى | O85: 1000
A86: 93 | B86: عوض100 | C86: سباحة | D86: 1000 | E86: 5 | F86: 2021-08-17 | G86: 2021-08-22 | H86: 2021-10-12 | I86: -51 | J86: انتهى | O86: 1000
A87: 94 | B87: عوض101 | C87: سباحة | D87: 1000 | E87: 5 | F87: 2021-08-18 | G87: 2021-08-23 | H87: 2021-10-12 | I87: -50 | J87: انتهى | O87: 1000
A88: 95 | B88: عوض102 | C88: سباحة | D88: 1000 | E88: 5 | F88: 2021-08-19 | G88: 2021-08-24 | H88: 2021-10-12 | I88: -49 | J88: انتهى | O88: 1000
A89: 96 | B89: عوض103 | C89: سباحة | D89: 1000 | E89: 5 | F89: 2021-08-20 | G89: 2021-08-25 | H89: 2021-10-12 | I89: -48 | J89: انتهى | O89: 1000
A90: 97 | B90: عوض104 | C90: سباحة | D90: 1000 | E90: 5 | F90: 2021-08-21 | G90: 2021-08-26 | H90: 2021-10-12 | I90: -47 | J90: انتهى | O90: 1000
A91: 98 | B91: عوض105 | C91: سباحة | D91: 1000 | E91: 5 | F91: 2021-08-22 | G91: 2021-08-27 | H91: 2021-10-12 | I91: -46 | J91: انتهى | O91: 1000
A92: 99 | B92: عوض106 | C92: سباحة | D92: 1000 | E92: 5 | F92: 2021-08-23 | G92: 2021-08-28 | H92: 2021-10-12 | I92: -45 | J92: انتهى | O92: 1000
A93: 100 | B93: عوض107 | C93: سباحة | D93: 1000 | E93: 5 | F93: 2021-08-24 | G93: 2021-08-29 | H93: 2021-10-12 | I93: -44 | J93: انتهى | O93: 1000
A94: 101 | B94: عوض108 | C94: سباحة | D94: 1000 | E94: 5 | F94: 2021-08-25 | G94: 2021-08-30 | H94: 2021-10-12 | I94: -43 | J94: انتهى | O94: 1000
A95: 102 | B95: عوض109 | C95: سباحة | D95: 1000 | E95: 5 | F95: 2021-08-26 | G95: 2021-08-31 | H95: 2021-10-12 | I95: -42 | J95: انتهى | O95: 1000
A96: 103 | B96: عوض110 | C96: سباحة | D96: 1000 | E96: 5 | F96: 2021-08-27 | G96: 2021-09-01 | H96: 2021-10-12 | I96: -41 | J96: انتهى | O96: 1000
A97: 104 | B97: عوض111 | C97: سباحة | D97: 1000 | E97: 5 | F97: 2021-08-28 | G97: 2021-09-02 | H97: 2021-10-12 | I97: -40 | J97: انتهى | O97: 1000
A98: 105 | B98: عوض112 | C98: سباحة | D98: 1000 | E98: 5 | F98: 2021-08-29 | G98: 2021-09-03 | H98: 2021-10-12 | I98: -39 | J98: انتهى | O98: 1000
A99: 106 | B99: عوض113 | C99: سباحة | D99: 1000 | E99: 5 | F99: 2021-08-30 | G99: 2021-09-04 | H99: 2021-10-12 | I99: -38 | J99: انتهى | O99: 1000
A100: 107 | B100: عوض114 | C100: سباحة | D100: 1000 | E100: 5 | F100: 2021-08-31 | G100: 2021-09-05 | H100: 2021-10-12 | I100: -37 | J100: انتهى | O100: 1000
A101: 108 | B101: عوض115 | C101: سباحة | D101: 1000 | E101: 5 | F101: 2021-09-01 | G101: 2021-09-06 | H101: 2021-10-12 | I101: -36 | J101: انتهى | O101: 1000
A102: 109 | B102: عوض116 | C102: سباحة | D102: 1000 | E102: 5 | F102: 2021-09-02 | G102: 2021-09-07 | H102: 2021-10-12 | I102: -35 | J102: انتهى | O102: 1000
A103: 110 | B103: عوض117 | C103: سباحة | D103: 1000 | E103: 5 | F103: 2021-09-03 | G103: 2021-09-08 | H103: 2021-10-12 | I103: -34 | J103: انتهى | O103: 1000
A104: 111 | B104: عوض118 | C104: سباحة | D104: 1000 | E104: 5 | F104: 2021-09-04 | G104: 2021-09-09 | H104: 2021-10-12 | I104: -33 | J104: انتهى | O104: 1000
A105: 112 | B105: عوض119 | C105: سباحة | D105: 1000 | E105: 5 | F105: 2021-09-05 | G105: 2021-09-10 | H105: 2021-10-12 | I105: -32 | J105: انتهى | O105: 1000
A106: 113 | B106: عوض120 | C106: سباحة | D106: 1000 | E106: 5 | F106: 2021-09-06 | G106: 2021-09-11 | H106: 2021-10-12 | I106: -31 | J106: انتهى | O106: 1000
A107: 114 | B107: عوض121 | C107: سباحة | D107: 1000 | E107: 5 | F107: 2021-09-07 | G107: 2021-09-12 | H107: 2021-10-12 | I107: -30 | J107: انتهى | O107: 1000
A108: 115 | B108: عوض122 | C108: سباحة | D108: 1000 | E108: 5 | F108: 2021-09-08 | G108: 2021-09-13 | H108: 2021-10-12 | I108: -29 | J108: انتهى | O108: 1000
A109: 116 | B109: عوض123 | C109: سباحة | D109: 1000 | E109: 5 | F109: 2021-09-09 | G109: 2021-09-14 | H109: 2021-10-12 | I109: -28 | J109: انتهى | O109: 1000
A110: 117 | B110: عوض124 | C110: سباحة | D110: 1000 | E110: 5 | F110: 2021-09-10 | G110: 2021-09-15 | H110: 2021-10-12 | I110: -27 | J110: انتهى | O110: 1000
A111: 118 | B111: عوض125 | C111: سباحة | D111: 1000 | E111: 5 | F111: 2021-09-11 | G111: 2021-09-16 | H111: 2021-10-12 | I111: -26 | J111: انتهى | O111: 1000
A112: 119 | B112: عوض126 | C112: سباحة | D112: 1000 | E112: 5 | F112: 2021-09-12 | G112: 2021-09-17 | H112: 2021-10-12 | I112: -25 | J112: انتهى | O112: 1000
A113: 120 | B113: عوض127 | C113: سباحة | D113: 1000 | E113: 5 | F113: 2021-09-13 | G113: 2021-09-18 | H113: 2021-10-12 | I113: -24 | J113: انتهى | O113: 1000
A114: 121 | B114: عوض128 | C114: سباحة | D114: 1000 | E114: 5 | F114: 2021-09-14 | G114: 2021-09-19 | H114: 2021-10-12 | I114: -23 | J114: انتهى | O114: 1000
A115: 122 | B115: عوض129 | C115: سباحة | D115: 1000 | E115: 5 | F115: 2021-09-15 | G115: 2021-09-20 | H115: 2021-10-12 | I115: -22 | J115: انتهى | O115: 1000
A116: 123 | B116: عوض130 | C116: سباحة | D116: 1000 | E116: 5 | F116: 2021-09-16 | G116: 2021-09-21 | H116: 2021-10-12 | I116: -21 | J116: انتهى | O116: 1000
A117: 124 | B117: عوض131 | C117: سباحة | D117: 1000 | E117: 5 | F117: 2021-09-17 | G117: 2021-09-22 | H117: 2021-10-12 | I117: -20 | J117: انتهى | O117: 1000
A118: 125 | B118: عوض132 | C118: سباحة | D118: 1000 | E118: 5 | F118: 2021-09-18 | G118: 2021-09-23 | H118: 2021-10-12 | I118: -19 | J118: انتهى | O118: 1000
A119: 126 | B119: عوض133 | C119: سباحة | D119: 1000 | E119: 5 | F119: 2021-09-19 | G119: 2021-09-24 | H119: 2021-10-12 | I119: -18 | J119: انتهى | O119: 1000
A120: 127 | B120: عوض134 | C120: سباحة | D120: 1000 | E120: 5 | F120: 2021-09-20 | G120: 2021-09-25 | H120: 2021-10-12 | I120: -17 | J120: انتهى | O120: 1000
A121: 128 | B121: عوض135 | C121: سباحة | D121: 1000 | E121: 5 | F121: 2021-09-21 | G121: 2021-09-26 | H121: 2021-10-12 | I121: -16 | J121: انتهى | O121: 1000
A122: 129 | B122: عوض136 | C122: سباحة | D122: 1000 | E122: 5 | F122: 2021-09-22 | G122: 2021-09-27 | H122: 2021-10-12 | I122: -15 | J122: انتهى | O122: 1000
A123: 130 | B123: عوض137 | C123: سباحة | D123: 1000 | E123: 5 | F123: 2021-09-23 | G123: 2021-09-28 | H123: 2021-10-12 | I123: -14 | J123: انتهى | O123: 1000
A124: 131 | B124: عوض138 | C124: سباحة | D124: 1000 | E124: 5 | F124: 2021-09-24 | G124: 2021-09-29 | H124: 2021-10-12 | I124: -13 | J124: انتهى | O124: 1000
A125: 132 | B125: عوض139 | C125: سباحة | D125: 1000 | E125: 5 | F125: 2021-09-25 | G125: 2021-09-30 | H125: 2021-10-12 | I125: -12 | J125: انتهى | O125: 1000
A126: 133 | B126: عوض140 | C126: سباحة | D126: 1000 | E126: 5 | F126: 2021-09-26 | G126: 2021-10-01 | H126: 2021-10-12 | I126: -11 | J126: انتهى | O126: 1000
A127: 134 | B127: عوض141 | C127: سباحة | D127: 1000 | E127: 5 | F127: 2021-09-27 | G127: 2021-10-02 | H127: 2021-10-12 | I127: -10 | J127: انتهى | O127: 1000
A128: 135 | B128: عوض142 | C128: سباحة | D128: 1000 | E128: 5 | F128: 2021-09-28 | G128: 2021-10-03 | H128: 2021-10-12 | I128: -9 | J128: انتهى | O128: 1000
A129: 136 | B129: عوض143 | C129: سباحة | D129: 1000 | E129: 5 | F129: 2021-09-29 | G129: 2021-10-04 | H129: 2021-10-12 | I129: -8 | J129: انتهى | O129: 1000
A130: 137 | B130: عوض144 | C130: سباحة | D130: 1000 | E130: 5 | F130: 2021-09-30 | G130: 2021-10-05 | H130: 2021-10-12 | I130: -7 | J130: انتهى | O130: 1000
A131: 138 | B131: عوض145 | C131: سباحة | D131: 1000 | E131: 5 | F131: 2021-10-01 | G131: 2021-10-06 | H131: 2021-10-12 | I131: -6 | J131: انتهى | O131: 1000
A132: 139 | B132: عوض146 | C132: سباحة | D132: 1000 | E132: 5 | F132: 2021-10-02 | G132: =IF(B132="","",F132+E132) -> 2021-10-07 | H132: =IF(B132="","",$H$2) -> 2021-10-12 | I132: =IF(B132="","",G132-H132) -> -5 | J132: =IF(B132="","",IF(H132>=G132,"انتهى","مجدد")) -> انتهى | O132: =D132-(K132+M132) -> 1000
A133: 140 | B133: عوض147 | C133: سباحة | D133: 1000 | E133: 5 | F133: 2021-10-03 | G133: 2021-10-08 | H133: 2021-10-12 | I133: -4 | J133: انتهى | O133: 1000
A134: 141 | B134: عوض148 | C134: سباحة | D134: 1000 | E134: 5 | F134: 2021-10-04 | G134: 2021-10-09 | H134: 2021-10-12 | I134: -3 | J134: انتهى | O134: 1000
A135: 142 | B135: عوض149 | C135: سباحة | D135: 1000 | E135: 5 | F135: 2021-10-05 | G135: 2021-10-10 | H135: 2021-10-12 | I135: -2 | J135: انتهى | O135: 1000
A136: 143 | B136: عوض150 | C136: سباحة | D136: 1000 | E136: 5 | F136: 2021-10-06 | G136: 2021-10-11 | H136: 2021-10-12 | I136: -1 | J136: انتهى | O136: 1000
A137: 144 | B137: عوض151 | C137: سباحة | D137: 1000 | E137: 5 | F137: 2021-10-07 | G137: 2021-10-12 | H137: 2021-10-12 | I137: 0 | J137: انتهى | O137: 1000
A138: 145 | B138: عوض152 | C138: سباحة | D138: 1000 | E138: 5 | F138: 2021-10-08 | G138: 2021-10-13 | H138: 2021-10-12 | I138: 1 | J138: مجدد | O138: 1000
A139: 146 | B139: عوض153 | C139: سباحة | D139: 1000 | E139: 5 | F139: 2021-10-09 | G139: 2021-10-14 | H139: 2021-10-12 | I139: 2 | J139: مجدد | O139: 1000
A140: 147 | B140: عوض154 | C140: سباحة | D140: 1000 | E140: 5 | F140: 2021-10-10 | G140: 2021-10-15 | H140: 2021-10-12 | I140: 3 | J140: مجدد | O140: 1000
A141: 148 | B141: عوض155 | C141: سباحة | D141: 1000 | E141: 5 | F141: 2021-10-11 | G141: 2021-10-16 | H141: 2021-10-12 | I141: 4 | J141: مجدد | O141: 1000
A142: 149 | B142: عوض156 | C142: سباحة | D142: 1000 | E142: 5 | F142: 2021-10-12 | G142: 2021-10-17 | H142: 2021-10-12 | I142: 5 | J142: مجدد | O142: 1000
A143: 150 | B143: عوض157 | C143: سباحة | D143: 1000 | E143: 5 | F143: 2021-10-13 | G143: 2021-10-18 | H143: 2021-10-12 | I143: 6 | J143: مجدد | O143: 1000
A144: 151 | B144: عوض158 | C144: سباحة | D144: 1000 | E144: 5 | F144: 2021-10-14 | G144: 2021-10-19 | H144: 2021-10-12 | I144: 7 | J144: مجدد | O144: 1000
A145: 152 | B145: عوض159 | C145: سباحة | D145: 1000 | E145: 5 | F145: 2021-10-15 | G145: 2021-10-20 | H145: 2021-10-12 | I145: 8 | J145: مجدد | O145: 1000
A146: 153 | B146: عوض160 | C146: سباحة | D146: 1000 | E146: 5 | F146: 2021-10-16 | G146: 2021-10-21 | H146: 2021-10-12 | I146: 9 | J146: مجدد | O146: 1000
A147: 154 | B147: عوض161 | C147: سباحة | D147: 1000 | E147: 5 | F147: 2021-10-17 | G147: 2021-10-22 | H147: 2021-10-12 | I147: 10 | J147: مجدد | O147: 1000
A148: 155 | B148: عوض162 | C148: سباحة | D148: 1000 | E148: 5 | F148: 2021-10-18 | G148: 2021-10-23 | H148: 2021-10-12 | I148: 11 | J148: مجدد | O148: 1000
A149: 156 | B149: عوض163 | C149: سباحة | D149: 1000 | E149: 5 | F149: 2021-10-19 | G149: 2021-10-24 | H149: 2021-10-12 | I149: 12 | J149: مجدد | O149: 1000
A150: 157 | B150: عوض164 | C150: سباحة | D150: 1000 | E150: 5 | F150: 2021-10-20 | G150: 2021-10-25 | H150: 2021-10-12 | I150: 13 | J150: مجدد | O150: 1000
A151: 158 | B151: عوض165 | C151: سباحة | D151: 1000 | E151: 5 | F151: 2021-10-21 | G151: 2021-10-26 | H151: 2021-10-12 | I151: 14 | J151: مجدد | O151: 1000
A152: 159 | B152: عوض166 | C152: سباحة | D152: 1000 | E152: 5 | F152: 2021-10-22 | G152: 2021-10-27 | H152: 2021-10-12 | I152: 15 | J152: مجدد | O152: 1000
A153: 160 | B153: عوض167 | C153: سباحة | D153: 1000 | E153: 5 | F153: 2021-10-23 | G153: 2021-10-28 | H153: 2021-10-12 | I153: 16 | J153: مجدد | O153: 1000
A154: 161 | B154: عوض168 | C154: سباحة | D154: 1000 | E154: 5 | F154: 2021-10-24 | G154: 2021-10-29 | H154: 2021-10-12 | I154: 17 | J154: مجدد | O154: 1000
A155: 162 | B155: عوض169 | C155: سباحة | D155: 1000 | E155: 5 | F155: 2021-10-25 | G155: 2021-10-30 | H155: 2021-10-12 | I155: 18 | J155: مجدد | O155: 1000
A156: 163 | B156: عوض170 | C156: سباحة | D156: 1000 | E156: 5 | F156: 2021-10-26 | G156: 2021-10-31 | H156: 2021-10-12 | I156: 19 | J156: مجدد | O156: 1000
A157: 164 | B157: عوض171 | C157: سباحة | D157: 1000 | E157: 5 | F157: 2021-10-27 | G157: 2021-11-01 | H157: 2021-10-12 | I157: 20 | J157: مجدد | O157: 1000
A158: 165 | B158: عوض172 | C158: سباحة | D158: 1000 | E158: 5 | F158: 2021-10-28 | G158: 2021-11-02 | H158: 2021-10-12 | I158: 21 | J158: مجدد | O158: 1000
A159: 166 | B159: عوض173 | C159: سباحة | D159: 1000 | E159: 5 | F159: 2021-10-29 | G159: 2021-11-03 | H159: 2021-10-12 | I159: 22 | J159: مجدد | O159: 1000
A160: 167 | B160: عوض174 | C160: سباحة | D160: 1000 | E160: 5 | F160: 2021-10-30 | G160: 2021-11-04 | H160: 2021-10-12 | I160: 23 | J160: مجدد | O160: 1000
A161: 168 | B161: عوض175 | C161: سباحة | D161: 1000 | E161: 5 | F161: 2021-10-31 | G161: 2021-11-05 | H161: 2021-10-12 | I161: 24 | J161: مجدد | O161: 1000
A162: 169 | B162: عوض176 | C162: سباحة | D162: 1000 | E162: 5 | F162: 2021-11-01 | G162: 2021-11-06 | H162: 2021-10-12 | I162: 25 | J162: مجدد | O162: 1000
A163: 170 | B163: عوض177 | C163: سباحة | D163: 1000 | E163: 5 | F163: 2021-11-02 | G163: 2021-11-07 | H163: 2021-10-12 | I163: 26 | J163: مجدد | O163: 1000
A164: 171 | B164: عوض178 | C164: سباحة | D164: 1000 | E164: 5 | F164: 2021-11-03 | G164: 2021-11-08 | H164: 2021-10-12 | I164: 27 | J164: مجدد | O164: 1000
A165: 172 | B165: عوض179 | C165: سباحة | D165: 1000 | E165: 5 | F165: 2021-11-04 | G165: 2021-11-09 | H165: 2021-10-12 | I165: 28 | J165: مجدد | O165: 1000
A166: 173 | B166: عوض180 | C166: سباحة | D166: 1000 | E166: 5 | F166: 2021-11-05 | G166: 2021-11-10 | H166: 2021-10-12 | I166: 29 | J166: مجدد | O166: 1000
A167: 174 | B167: عوض181 | C167: سباحة | D167: 1000 | E167: 5 | F167: 2021-11-06 | G167: 2021-11-11 | H167: 2021-10-12 | I167: 30 | J167: مجدد | O167: 1000
A168: 175 | B168: عوض182 | C168: سباحة | D168: 1000 | E168: 5 | F168: 2021-11-07 | G168: 2021-11-12 | H168: 2021-10-12 | I168: 31 | J168: مجدد | O168: 1000
A169: 176 | B169: عوض183 | C169: سباحة | D169: 1000 | E169: 5 | F169: 2021-11-08 | G169: 2021-11-13 | H169: 2021-10-12 | I169: 32 | J169: مجدد | O169: 1000
A170: 177 | B170: عوض184 | C170: سباحة | D170: 1000 | E170: 5 | F170: 2021-11-09 | G170: 2021-11-14 | H170: 2021-10-12 | I170: 33 | J170: مجدد | O170: 1000
A171: 178 | B171: عوض185 | C171: سباحة | D171: 1000 | E171: 5 | F171: 2021-11-10 | G171: 2021-11-15 | H171: 2021-10-12 | I171: 34 | J171: مجدد | O171: 1000
A172: 179 | B172: عوض186 | C172: سباحة | D172: 1000 | E172: 5 | F172: 2021-11-11 | G172: 2021-11-16 | H172: 2021-10-12 | I172: 35 | J172: مجدد | O172: 1000
A173: 180 | B173: عوض187 | C173: سباحة | D173: 1000 | E173: 5 | F173: 2021-11-12 | G173: 2021-11-17 | H173: 2021-10-12 | I173: 36 | J173: مجدد | O173: 1000
A174: 181 | B174: عوض188 | C174: سباحة | D174: 1000 | E174: 5 | F174: 2021-11-13 | G174: 2021-11-18 | H174: 2021-10-12 | I174: 37 | J174: مجدد | O174: 1000
A175: 182 | B175: عوض189 | C175: سباحة | D175: 1000 | E175: 5 | F175: 2021-11-14 | G175: 2021-11-19 | H175: 2021-10-12 | I175: 38 | J175: مجدد | O175: 1000
A176: 183 | B176: عوض190 | C176: سباحة | D176: 1000 | E176: 5 | F176: 2021-11-15 | G176: 2021-11-20 | H176: 2021-10-12 | I176: 39 | J176: مجدد | O176: 1000
A177: 184 | B177: عوض191 | C177: سباحة | D177: 1000 | E177: 5 | F177: 2021-11-16 | G177: 2021-11-21 | H177: 2021-10-12 | I177: 40 | J177: مجدد | O177: 1000
A178: 185 | B178: عوض192 | C178: سباحة | D178: 1000 | E178: 5 | F178: 2021-11-17 | G178: 2021-11-22 | H178: 2021-10-12 | I178: 41 | J178: مجدد | O178: 1000
A179: 186 | B179: عوض193 | C179: سباحة | D179: 1000 | E179: 5 | F179: 2021-11-18 | G179: 2021-11-23 | H179: 2021-10-12 | I179: 42 | J179: مجدد | O179: 1000
A180: 187 | B180: عوض194 | C180: سباحة | D180: 1000 | E180: 5 | F180: 2021-11-19 | G180: 2021-11-24 | H180: 2021-10-12 | I180: 43 | J180: مجدد | O180: 1000
A181: 188 | B181: عوض195 | C181: سباحة | D181: 1000 | E181: 5 | F181: 2021-11-20 | G181: 2021-11-25 | H181: 2021-10-12 | I181: 44 | J181: مجدد | O181: 1000
A182: 189 | B182: عوض196 | C182: سباحة | D182: 1000 | E182: 5 | F182: 2021-11-21 | G182: 2021-11-26 | H182: 2021-10-12 | I182: 45 | J182: مجدد | O182: 1000
A183: 190 | B183: عوض197 | C183: سباحة | D183: 1000 | E183: 5 | F183: 2021-11-22 | G183: 2021-11-27 | H183: 2021-10-12 | I183: 46 | J183: مجدد | O183: 1000
A184: 191 | B184: عوض198 | C184: سباحة | D184: 1000 | E184: 5 | F184: 2021-11-23 | G184: 2021-11-28 | H184: 2021-10-12 | I184: 47 | J184: مجدد | O184: 1000
A185: 192 | B185: عوض199 | C185: سباحة | D185: 1000 | E185: 5 | F185: 2021-11-24 | G185: 2021-11-29 | H185: 2021-10-12 | I185: 48 | J185: مجدد | O185: 1000
A186: 193 | B186: عوض200 | C186: سباحة | D186: 1000 | E186: 5 | F186: 2021-11-25 | G186: 2021-11-30 | H186: 2021-10-12 | I186: 49 | J186: مجدد | O186: 1000
A187: 194 | B187: عوض201 | C187: سباحة | D187: 1000 | E187: 5 | F187: 2021-11-26 | G187: 2021-12-01 | H187: 2021-10-12 | I187: 50 | J187: مجدد | O187: 1000
A188: 195 | B188: عوض202 | C188: سباحة | D188: 1000 | E188: 5 | F188: 2021-11-27 | G188: 2021-12-02 | H188: 2021-10-12 | I188: 51 | J188: مجدد | O188: 1000
A189: 196 | B189: عوض203 | C189: سباحة | D189: 1000 | E189: 5 | F189: 2021-11-28 | G189: 2021-12-03 | H189: 2021-10-12 | I189: 52 | J189: مجدد | O189: 1000
A190: 197 | B190: عوض204 | C190: سباحة | D190: 1000 | E190: 5 | F190: 2021-11-29 | G190: 2021-12-04 | H190: 2021-10-12 | I190: 53 | J190: مجدد | O190: 1000
A191: 198 | B191: عوض205 | C191: سباحة | D191: 1000 | E191: 5 | F191: 2021-11-30 | G191: 2021-12-05 | H191: 2021-10-12 | I191: 54 | J191: مجدد | O191: 1000
A192: 199 | B192: عوض206 | C192: سباحة | D192: 1000 | E192: 5 | F192: 2021-12-01 | G192: 2021-12-06 | H192: 2021-10-12 | I192: 55 | J192: مجدد | O192: 1000
A193: 200 | B193: عوض207 | C193: سباحة | D193: 1000 | E193: 5 | F193: 2021-12-02 | G193: 2021-12-07 | H193: 2021-10-12 | I193: 56 | J193: مجدد | O193: 1000
A194: 201 | B194: عوض208 | C194: سباحة | D194: 1000 | E194: 5 | F194: 2021-12-03 | G194: 2021-12-08 | H194: 2021-10-12 | I194: 57 | J194: مجدد | O194: 1000
A195: 202 | B195: عوض209 | C195: سباحة | D195: 1000 | E195: 5 | F195: 2021-12-04 | G195: 2021-12-09 | H195: 2021-10-12 | I195: 58 | J195: مجدد | O195: 1000
A196: 203 | B196: عوض210 | C196: سباحة | D196: 1000 | E196: 5 | F196: 2021-12-05 | G196: =IF(B196="","",F196+E196) -> 2021-12-10 | H196: =IF(B196="","",$H$2) -> 2021-10-12 | I196: =IF(B196="","",G196-H196) -> 59 | J196: =IF(B196="","",IF(H196>=G196,"انتهى","مجدد")) -> مجدد | O196: =D196-(K196+M196) -> 1000
A197: 204 | B197: عوض211 | C197: سباحة | D197: 1000 | E197: 5 | F197: 2021-12-06 | G197: 2021-12-11 | H197: 2021-10-12 | I197: 60 | J197: مجدد | O197: 1000
A198: 205 | B198: عوض212 | C198: سباحة | D198: 1000 | E198: 5 | F198: 2021-12-07 | G198: 2021-12-12 | H198: 2021-10-12 | I198: 61 | J198: مجدد | O198: 1000
A199: 206 | B199: عوض213 | C199: سباحة | D199: 1000 | E199: 5 | F199: 2021-12-08 | G199: 2021-12-13 | H199: 2021-10-12 | I199: 62 | J199: مجدد | O199: 1000
A200: 207 | B200: عوض214 | C200: سباحة | D200: 1000 | E200: 5 | F200: 2021-12-09 | G200: 2021-12-14 | H200: 2021-10-12 | I200: 63 | J200: مجدد | O200: 1000
... 800 more rows

Sheet مرحل
C1: حفظ المحذوفات
A2: م | B2: الاسم | C2: النشاط | D2: قيمة الاشتراك | E2: مدة الاشتراك | F2: بداية النشاط
A3: 333 | B3: عوض27 | C3: سباحة | D3: 1000 | E3: 5 | F3: 2021-05-06
A4: 2 | B4: عوض22 | C4: سباحة | D4: 100 | E4: 7 | F4: 2021-03-05
A5: 5 | B5: عوض12 | C5: سباحة | D5: 600 | E5: 7 | F5: 2021-03-05
A6: 6 | B6: عوض5 | C6: سباحة | D6: 100 | E6: 7 | F6: 2021-04-05
A7: 3 | B7: عوض12 | C7: سباحة | D7: 600 | E7: 7 | F7: 2021-03-05
A8: 1000 | B8: عوض997 | C8: سباحة | D8: 1000 | E8: 5 | F8: 31/01/2024
A9: 7 | B9: عوض6 | C9: سباحة | D9: 100 | E9: 7 | F9: 2021-05-05
A10: 8 | B10: عوض21 | C10: سباحة | D10: 1000 | E10: 5 | F10: 30/05/2021
A11: 992 | B11: عوض998 | C11: سباحة | D11: 1000 | E11: 5 | F11: 2024-01-02
A12: 8 | B12: عوض21 | C12: سباحة | D12: 1000 | E12: 5 | F12: 30/05/2021
A13: 9 | B13: عوض8 | C13: سباحة | D13: 100 | E13: 7 | F13: 2021-05-07
A14: 11 | B14: عوض21 | C14: سباحة | D14: 1000 | E14: 5 | F14: 30/05/2021
A15: 7 | B15: عوض21 | C15: سباحة | D15: 1000 | E15: 5 | F15: 30/05/2021
A16: 11111 | B16: عوض21 | C16: سباحة | D16: 1000 | E16: 5 | F16: 20/06/2021
A17: 5005 | B17: عوض21 | C17: سباحة | D17: 1000 | E17: 5 | F17: 20/06/2021
A18: 15 | B18: عوض22 | C18: سباحة | D18: 1000 | E18: 5 | F18: 31/05/2021

Sheet اسماء المشتركين
A1: 1 | B1: 2 | C1: 3 | D1: بيانات الاعضاء | E1: 5 | F1: 6 | G1: 7 | H1: 8
A2: م | B2: اسم المشترك | C2: النشاط | D2: الرقم القومى | E2: السن | F2: الوظيفة | G2: العنوان | H2: التليفون
A3: 9 | B3: عوض9 | C3: كراتيه | D3: 25252525252525 | E3: 45 | F3: عامل | G3: القاهرة | H3: 0212121212122
A4: 10 | B4: عوض10 | C4: كراتيه | D4: 25252525252525 | E4: 45 | F4: عامل | G4: القاهرة | H4: 0212121212122
A5: 11 | B5: عوض11 | C5: كراتيه | D5: 25252525252525 | E5: 45 | F5: عامل | G5: القاهرة | H5: 0212121212122
A6: 13 | B6: عوض13 | C6: كراتيه | D6: 25252525252525 | E6: 45 | F6: عامل | G6: القاهرة | H6: 0212121212122
A7: 14 | B7: عوض14 | C7: كراتيه | D7: 25252525252525 | E7: 45 | F7: عامل | G7: القاهرة | H7: 0212121212122
A8: 15 | B8: عوض15 | C8: كراتيه | D8: 25252525252525 | E8: 45 | F8: عامل | G8: القاهرة | H8: 0212121212122
A9: 16 | B9: عوض16 | C9: كراتيه | D9: 25252525252525 | E9: 45 | F9: عامل | G9: القاهرة | H9: 0212121212122
A10: 17 | B10: عوض17 | C10: كراتيه | D10: 25252525252525 | E10: 45 | F10: عامل | G10: القاهرة | H10: 0212121212122
A11: 18 | B11: عوض18 | C11: كراتيه | D11: 25252525252525 | E11: 45 | F11: عامل | G11: القاهرة | H11: 0212121212122
A12: 19 | B12: عوض19 | C12: كراتيه | D12: 25252525252525 | E12: 45 | F12: عامل | G12: القاهرة | H12: 0212121212122
A13: 20 | B13: عوض20 | C13: كراتيه | D13: 25252525252525 | E13: 45 | F13: عامل | G13: القاهرة | H13: 0212121212122
A14: 21 | B14: عوض21 | C14: كراتيه | D14: 25252525252525 | E14: 45 | F14: عامل | G14: القاهرة | H14: 0212121212122
A15: 22 | B15: عوض22 | C15: كراتيه | D15: 25252525252525 | E15: 45 | F15: عامل | G15: القاهرة | H15: 0212121212122
A16: 23 | B16: عوض23 | C16: كراتيه | D16: 25252525252525 | E16: 45 | F16: عامل | G16: القاهرة | H16: 0212121212122
A17: 24 | B17: عوض24 | C17: كراتيه | D17: 25252525252525 | E17: 45 | F17: عامل | G17: القاهرة | H17: 0212121212122
A18: 25 | B18: عوض25 | C18: كراتيه | D18: 25252525252525 | E18: 45 | F18: عامل | G18: القاهرة | H18: 0212121212122
A19: 26 | B19: عوض26 | C19: كراتيه | D19: 25252525252525 | E19: 45 | F19: عامل | G19: القاهرة | H19: 0212121212122
A20: 27 | B20: عوض27 | C20: كراتيه | D20: 25252525252525 | E20: 45 | F20: عامل | G20: القاهرة | H20: 0212121212122
A21: 28 | B21: عوض28 | C21: كراتيه | D21: 25252525252525 | E21: 45 | F21: عامل | G21: القاهرة | H21: 0212121212122
A22: 29 | B22: عوض29 | C22: كراتيه | D22: 25252525252525 | E22: 45 | F22: عامل | G22: القاهرة | H22: 0212121212122
A23: 30 | B23: عوض30 | C23: كراتيه | D23: 25252525252525 | E23: 45 | F23: عامل | G23: القاهرة | H23: 0212121212122
A24: 31 | B24: عوض31 | C24: كراتيه | D24: 25252525252525 | E24: 45 | F24: عامل | G24: القاهرة | H24: 0212121212122
A25: 32 | B25: عوض32 | C25: كراتيه | D25: 25252525252525 | E25: 45 | F25: عامل | G25: القاهرة | H25: 0212121212122
A26: 33 | B26: عوض33 | C26: كراتيه | D26: 25252525252525 | E26: 45 | F26: عامل | G26: القاهرة | H26: 0212121212122
A27: 34 | B27: عوض34 | C27: كراتيه | D27: 25252525252525 | E27: 45 | F27: عامل | G27: القاهرة | H27: 0212121212122
A28: 35 | B28: عوض35 | C28: كراتيه | D28: 25252525252525 | E28: 45 | F28: عامل | G28: القاهرة | H28: 0212121212122
A29: 36 | B29: عوض36 | C29: كراتيه | D29: 25252525252525 | E29: 45 | F29: عامل | G29: القاهرة | H29: 0212121212122
A30: 37 | B30: عوض37 | C30: كراتيه | D30: 25252525252525 | E30: 45 | F30: عامل | G30: القاهرة | H30: 0212121212122
A31: 38 | B31: عوض38 | C31: كراتيه | D31: 25252525252525 | E31: 45 | F31: عامل | G31: القاهرة | H31: 0212121212122
A32: 39 | B32: عوض39 | C32: كراتيه | D32: 25252525252525 | E32: 45 | F32: عامل | G32: القاهرة | H32: 0212121212122
A33: 40 | B33: عوض40 | C33: كراتيه | D33: 25252525252525 | E33: 45 | F33: عامل | G33: القاهرة | H33: 0212121212122
A34: 41 | B34: عوض41 | C34: كراتيه | D34: 25252525252525 | E34: 45 | F34: عامل | G34: القاهرة | H34: 0212121212122
A35: 42 | B35: عوض42 | C35: كراتيه | D35: 25252525252525 | E35: 45 | F35: عامل | G35: القاهرة | H35: 0212121212122
A36: 43 | B36: عوض43 | C36: كراتيه | D36: 25252525252525 | E36: 45 | F36: عامل | G36: القاهرة | H36: 0212121212122
A37: 44 | B37: عوض44 | C37: كراتيه | D37: 25252525252525 | E37: 45 | F37: عامل | G37: القاهرة | H37: 0212121212122
A38: 45 | B38: عوض45 | C38: كراتيه | D38: 25252525252525 | E38: 45 | F38: عامل | G38: القاهرة | H38: 0212121212122
A39: 46 | B39: عوض46 | C39: كراتيه | D39: 25252525252525 | E39: 45 | F39: عامل | G39: القاهرة | H39: 0212121212122
A40: 47 | B40: عوض47 | C40: كراتيه | D40: 25252525252525 | E40: 45 | F40: عامل | G40: القاهرة | H40: 0212121212122
A41: 48 | B41: عوض48 | C41: كراتيه | D41: 25252525252525 | E41: 45 | F41: عامل | G41: القاهرة | H41: 0212121212122
A42: 49 | B42: عوض49 | C42: كراتيه | D42: 25252525252525 | E42: 45 | F42: عامل | G42: القاهرة | H42: 0212121212122
A43: 50 | B43: عوض50 | C43: كراتيه | D43: 25252525252525 | E43: 45 | F43: عامل | G43: القاهرة | H43: 0212121212122
A44: 51 | B44: عوض51 | C44: كراتيه | D44: 25252525252525 | E44: 45 | F44: عامل | G44: القاهرة | H44: 0212121212122
A45: 52 | B45: عوض52 | C45: كراتيه | D45: 25252525252525 | E45: 45 | F45: عامل | G45: القاهرة | H45: 0212121212122
A46: 53 | B46: عوض53 | C46: كراتيه | D46: 25252525252525 | E46: 45 | F46: عامل | G46: القاهرة | H46: 0212121212122
A47: 54 | B47: عوض54 | C47: كراتيه | D47: 25252525252525 | E47: 45 | F47: عامل | G47: القاهرة | H47: 0212121212122
A48: 55 | B48: عوض55 | C48: كراتيه | D48: 25252525252525 | E48: 45 | F48: عامل | G48: القاهرة | H48: 0212121212122
A49: 56 | B49: عوض56 | C49: كراتيه | D49: 25252525252525 | E49: 45 | F49: عامل | G49: القاهرة | H49: 0212121212122
A50: 57 | B50: عوض57 | C50: كراتيه | D50: 25252525252525 | E50: 45 | F50: عامل | G50: القاهرة | H50: 0212121212122
A51: 58 | B51: عوض58 | C51: كراتيه | D51: 25252525252525 | E51: 45 | F51: عامل | G51: القاهرة | H51: 0212121212122
A52: 59 | B52: عوض59 | C52: كراتيه | D52: 25252525252525 | E52: 45 | F52: عامل | G52: القاهرة | H52: 0212121212122
A53: 60 | B53: عوض60 | C53: كراتيه | D53: 25252525252525 | E53: 45 | F53: عامل | G53: القاهرة | H53: 0212121212122
A54: 61 | B54: عوض61 | C54: كراتيه | D54: 25252525252525 | E54: 45 | F54: عامل | G54: القاهرة | H54: 0212121212122
A55: 62 | B55: عوض62 | C55: كراتيه | D55: 25252525252525 | E55: 45 | F55: عامل | G55: القاهرة | H55: 0212121212122
A56: 63 | B56: عوض63 | C56: كراتيه | D56: 25252525252525 | E56: 45 | F56: عامل | G56: القاهرة | H56: 0212121212122
A57: 64 | B57: عوض64 | C57: كراتيه | D57: 25252525252525 | E57: 45 | F57: عامل | G57: القاهرة | H57: 0212121212122
A58: 65 | B58: عوض65 | C58: كراتيه | D58: 25252525252525 | E58: 45 | F58: عامل | G58: القاهرة | H58: 0212121212122
A59: 66 | B59: عوض66 | C59: كراتيه | D59: 25252525252525 | E59: 45 | F59: عامل | G59: القاهرة | H59: 0212121212122
A60: 67 | B60: عوض67 | C60: كراتيه | D60: 25252525252525 | E60: 45 | F60: عامل | G60: القاهرة | H60: 0212121212122
A61: 68 | B61: عوض68 | C61: كراتيه | D61: 25252525252525 | E61: 45 | F61: عامل | G61: القاهرة | H61: 0212121212122
A62: 69 | B62: عوض69 | C62: كراتيه | D62: 25252525252525 | E62: 45 | F62: عامل | G62: القاهرة | H62: 0212121212122
A63: 70 | B63: عوض70 | C63: كراتيه | D63: 25252525252525 | E63: 45 | F63: عامل | G63: القاهرة | H63: 0212121212122
A64: 71 | B64: عوض71 | C64: كراتيه | D64: 25252525252525 | E64: 45 | F64: عامل | G64: القاهرة | H64: 0212121212122
A65: 72 | B65: عوض72 | C65: كراتيه | D65: 25252525252525 | E65: 45 | F65: عامل | G65: القاهرة | H65: 0212121212122
A66: 73 | B66: عوض73 | C66: كراتيه | D66: 25252525252525 | E66: 45 | F66: عامل | G66: القاهرة | H66: 0212121212122
A67: 74 | B67: عوض74 | C67: كراتيه | D67: 25252525252525 | E67: 45 | F67: عامل | G67: القاهرة | H67: 0212121212122
A68: 75 | B68: عوض75 | C68: كراتيه | D68: 25252525252525 | E68: 45 | F68: عامل | G68: القاهرة | H68: 0212121212122
A69: 76 | B69: عوض76 | C69: كراتيه | D69: 25252525252525 | E69: 45 | F69: عامل | G69: القاهرة | H69: 0212121212122
A70: 77 | B70: عوض77 | C70: كراتيه | D70: 25252525252525 | E70: 45 | F70: عامل | G70: القاهرة | H70: 0212121212122
A71: 78 | B71: عوض78 | C71: كراتيه | D71: 25252525252525 | E71: 45 | F71: عامل | G71: القاهرة | H71: 0212121212122
A72: 79 | B72: عوض79 | C72: كراتيه | D72: 25252525252525 | E72: 45 | F72: عامل | G72: القاهرة | H72: 0212121212122
A73: 80 | B73: عوض80 | C73: كراتيه | D73: 25252525252525 | E73: 45 | F73: عامل | G73: القاهرة | H73: 0212121212122
A74: 81 | B74: عوض81 | C74: كراتيه | D74: 25252525252525 | E74: 45 | F74: عامل | G74: القاهرة | H74: 0212121212122
A75: 82 | B75: عوض82 | C75: كراتيه | D75: 25252525252525 | E75: 45 | F75: عامل | G75: القاهرة | H75: 0212121212122
A76: 83 | B76: عوض83 | C76: كراتيه | D76: 25252525252525 | E76: 45 | F76: عامل | G76: القاهرة | H76: 0212121212122
A77: 84 | B77: عوض84 | C77: كراتيه | D77: 25252525252525 | E77: 45 | F77: عامل | G77: القاهرة | H77: 0212121212122
A78: 85 | B78: عوض85 | C78: كراتيه | D78: 25252525252525 | E78: 45 | F78: عامل | G78: القاهرة | H78: 0212121212122
A79: 86 | B79: عوض86 | C79: كراتيه | D79: 25252525252525 | E79: 45 | F79: عامل | G79: القاهرة | H79: 0212121212122
A80: 87 | B80: عوض87 | C80: كراتيه | D80: 25252525252525 | E80: 45 | F80: عامل | G80: القاهرة | H80: 0212121212122
A81: 88 | B81: عوض88 | C81: كراتيه | D81: 25252525252525 | E81: 45 | F81: عامل | G81: القاهرة | H81: 0212121212122
A82: 89 | B82: عوض89 | C82: كراتيه | D82: 25252525252525 | E82: 45 | F82: عامل | G82: القاهرة | H82: 0212121212122
A83: 90 | B83: عوض90 | C83: كراتيه | D83: 25252525252525 | E83: 45 | F83: عامل | G83: القاهرة | H83: 0212121212122
A84: 91 | B84: عوض91 | C84: كراتيه | D84: 25252525252525 | E84: 45 | F84: عامل | G84: القاهرة | H84: 0212121212122
A85: 92 | B85: عوض92 | C85: كراتيه | D85: 25252525252525 | E85: 45 | F85: عامل | G85: القاهرة | H85: 0212121212122
A86: 93 | B86: عوض93 | C86: كراتيه | D86: 25252525252525 | E86: 45 | F86: عامل | G86: القاهرة | H86: 0212121212122
A87: 94 | B87: عوض94 | C87: كراتيه | D87: 25252525252525 | E87: 45 | F87: عامل | G87: القاهرة | H87: 0212121212122
A88: 95 | B88: عوض95 | C88: كراتيه | D88: 25252525252525 | E88: 45 | F88: عامل | G88: القاهرة | H88: 0212121212122
A89: 96 | B89: عوض96 | C89: كراتيه | D89: 25252525252525 | E89: 45 | F89: عامل | G89: القاهرة | H89: 0212121212122
A90: 97 | B90: عوض97 | C90: كراتيه | D90: 25252525252525 | E90: 45 | F90: عامل | G90: القاهرة | H90: 0212121212122
A91: 98 | B91: عوض98 | C91: كراتيه | D91: 25252525252525 | E91: 45 | F91: عامل | G91: القاهرة | H91: 0212121212122
A92: 99 | B92: عوض99 | C92: كراتيه | D92: 25252525252525 | E92: 45 | F92: عامل | G92: القاهرة | H92: 0212121212122
A93: 100 | B93: عوض100 | C93: كراتيه | D93: 25252525252525 | E93: 45 | F93: عامل | G93: القاهرة | H93: 0212121212122
A94: 101 | B94: عوض101 | C94: كراتيه | D94: 25252525252525 | E94: 45 | F94: عامل | G94: القاهرة | H94: 0212121212122
A95: 102 | B95: عوض102 | C95: كراتيه | D95: 25252525252525 | E95: 45 | F95: عامل | G95: القاهرة | H95: 0212121212122
A96: 103 | B96: عوض103 | C96: كراتيه | D96: 25252525252525 | E96: 45 | F96: عامل | G96: القاهرة | H96: 0212121212122
A97: 104 | B97: عوض104 | C97: كراتيه | D97: 25252525252525 | E97: 45 | F97: عامل | G97: القاهرة | H97: 0212121212122
A98: 105 | B98: عوض105 | C98: كراتيه | D98: 25252525252525 | E98: 45 | F98: عامل | G98: القاهرة | H98: 0212121212122
A99: 106 | B99: عوض106 | C99: كراتيه | D99: 25252525252525 | E99: 45 | F99: عامل | G99: القاهرة | H99: 0212121212122
A100: 107 | B100: عوض107 | C100: كراتيه | D100: 25252525252525 | E100: 45 | F100: عامل | G100: القاهرة | H100: 0212121212122
A101: 108 | B101: عوض108 | C101: كراتيه | D101: 25252525252525 | E101: 45 | F101: عامل | G101: القاهرة | H101: 0212121212122
A102: 109 | B102: عوض109 | C102: كراتيه | D102: 25252525252525 | E102: 45 | F102: عامل | G102: القاهرة | H102: 0212121212122
A103: 110 | B103: عوض110 | C103: كراتيه | D103: 25252525252525 | E103: 45 | F103: عامل | G103: القاهرة | H103: 0212121212122
A104: 111 | B104: عوض111 | C104: كراتيه | D104: 25252525252525 | E104: 45 | F104: عامل | G104: القاهرة | H104: 0212121212122
A105: 112 | B105: عوض112 | C105: كراتيه | D105: 25252525252525 | E105: 45 | F105: عامل | G105: القاهرة | H105: 0212121212122
A106: 113 | B106: عوض113 | C106: كراتيه | D106: 25252525252525 | E106: 45 | F106: عامل | G106: القاهرة | H106: 0212121212122
A107: 114 | B107: عوض114 | C107: كراتيه | D107: 25252525252525 | E107: 45 | F107: عامل | G107: القاهرة | H107: 0212121212122
A108: 115 | B108: عوض115 | C108: كراتيه | D108: 25252525252525 | E108: 45 | F108: عامل | G108: القاهرة | H108: 0212121212122
A109: 116 | B109: عوض116 | C109: كراتيه | D109: 25252525252525 | E109: 45 | F109: عامل | G109: القاهرة | H109: 0212121212122
A110: 117 | B110: عوض117 | C110: كراتيه | D110: 25252525252525 | E110: 45 | F110: عامل | G110: القاهرة | H110: 0212121212122
A111: 118 | B111: عوض118 | C111: كراتيه | D111: 25252525252525 | E111: 45 | F111: عامل | G111: القاهرة | H111: 0212121212122
A112: 119 | B112: عوض119 | C112: كراتيه | D112: 25252525252525 | E112: 45 | F112: عامل | G112: القاهرة | H112: 0212121212122
A113: 120 | B113: عوض120 | C113: كراتيه | D113: 25252525252525 | E113: 45 | F113: عامل | G113: القاهرة | H113: 0212121212122
A114: 121 | B114: عوض121 | C114: كراتيه | D114: 25252525252525 | E114: 45 | F114: عامل | G114: القاهرة | H114: 0212121212122
A115: 122 | B115: عوض122 | C115: كراتيه | D115: 25252525252525 | E115: 45 | F115: عامل | G115: القاهرة | H115: 0212121212122
A116: 123 | B116: عوض123 | C116: كراتيه | D116: 25252525252525 | E116: 45 | F116: عامل | G116: القاهرة | H116: 0212121212122
A117: 124 | B117: عوض124 | C117: كراتيه | D117: 25252525252525 | E117: 45 | F117: عامل | G117: القاهرة | H117: 0212121212122
A118: 125 | B118: عوض125 | C118: كراتيه | D118: 25252525252525 | E118: 45 | F118: عامل | G118: القاهرة | H118: 0212121212122
A119: 126 | B119: عوض126 | C119: كراتيه | D119: 25252525252525 | E119: 45 | F119: عامل | G119: القاهرة | H119: 0212121212122
A120: 127 | B120: عوض127 | C120: كراتيه | D120: 25252525252525 | E120: 45 | F120: عامل | G120: القاهرة | H120: 0212121212122
A121: 128 | B121: عوض128 | C121: كراتيه | D121: 25252525252525 | E121: 45 | F121: عامل | G121: القاهرة | H121: 0212121212122
A122: 129 | B122: عوض129 | C122: كراتيه | D122: 25252525252525 | E122: 45 | F122: عامل | G122: القاهرة | H122: 0212121212122
A123: 130 | B123: عوض130 | C123: كراتيه | D123: 25252525252525 | E123: 45 | F123: عامل | G123: القاهرة | H123: 0212121212122
A124: 131 | B124: عوض131 | C124: كراتيه | D124: 25252525252525 | E124: 45 | F124: عامل | G124: القاهرة | H124: 0212121212122
A125: 132 | B125: عوض132 | C125: كراتيه | D125: 25252525252525 | E125: 45 | F125: عامل | G125: القاهرة | H125: 0212121212122
A126: 133 | B126: عوض133 | C126: كراتيه | D126: 25252525252525 | E126: 45 | F126: عامل | G126: القاهرة | H126: 0212121212122
A127: 134 | B127: عوض134 | C127: كراتيه | D127: 25252525252525 | E127: 45 | F127: عامل | G127: القاهرة | H127: 0212121212122
A128: 135 | B128: عوض135 | C128: كراتيه | D128: 25252525252525 | E128: 45 | F128: عامل | G128: القاهرة | H128: 0212121212122
A129: 136 | B129: عوض136 | C129: كراتيه | D129: 25252525252525 | E129: 45 | F129: عامل | G129: القاهرة | H129: 0212121212122
A130: 137 | B130: عوض137 | C130: كراتيه | D130: 25252525252525 | E130: 45 | F130: عامل | G130: القاهرة | H130: 0212121212122
A131: 138 | B131: عوض138 | C131: كراتيه | D131: 25252525252525 | E131: 45 | F131: عامل | G131: القاهرة | H131: 0212121212122
A132: 139 | B132: عوض139 | C132: كراتيه | D132: 25252525252525 | E132: 45 | F132: عامل | G132: القاهرة | H132: 0212121212122
A133: 140 | B133: عوض140 | C133: كراتيه | D133: 25252525252525 | E133: 45 | F133: عامل | G133: القاهرة | H133: 0212121212122
A134: 141 | B134: عوض141 | C134: كراتيه | D134: 25252525252525 | E134: 45 | F134: عامل | G134: القاهرة | H134: 0212121212122
A135: 142 | B135: عوض142 | C135: كراتيه | D135: 25252525252525 | E135: 45 | F135: عامل | G135: القاهرة | H135: 0212121212122
A136: 143 | B136: عوض143 | C136: كراتيه | D136: 25252525252525 | E136: 45 | F136: عامل | G136: القاهرة | H136: 0212121212122
A137: 144 | B137: عوض144 | C137: كراتيه | D137: 25252525252525 | E137: 45 | F137: عامل | G137: القاهرة | H137: 0212121212122
A138: 145 | B138: عوض145 | C138: كراتيه | D138: 25252525252525 | E138: 45 | F138: عامل | G138: القاهرة | H138: 0212121212122
A139: 146 | B139: عوض146 | C139: كراتيه | D139: 25252525252525 | E139: 45 | F139: عامل | G139: القاهرة | H139: 0212121212122
A140: 147 | B140: عوض147 | C140: كراتيه | D140: 25252525252525 | E140: 45 | F140: عامل | G140: القاهرة | H140: 0212121212122
A141: 148 | B141: عوض148 | C141: كراتيه | D141: 25252525252525 | E141: 45 | F141: عامل | G141: القاهرة | H141: 0212121212122
A142: 149 | B142: عوض149 | C142: كراتيه | D142: 25252525252525 | E142: 45 | F142: عامل | G142: القاهرة | H142: 0212121212122
A143: 150 | B143: عوض150 | C143: كراتيه | D143: 25252525252525 | E143: 45 | F143: عامل | G143: القاهرة | H143: 0212121212122
A144: 151 | B144: عوض151 | C144: كراتيه | D144: 25252525252525 | E144: 45 | F144: عامل | G144: القاهرة | H144: 0212121212122
A145: 152 | B145: عوض152 | C145: كراتيه | D145: 25252525252525 | E145: 45 | F145: عامل | G145: القاهرة | H145: 0212121212122
A146: 153 | B146: عوض153 | C146: كراتيه | D146: 25252525252525 | E146: 45 | F146: عامل | G146: القاهرة | H146: 0212121212122
A147: 154 | B147: عوض154 | C147: كراتيه | D147: 25252525252525 | E147: 45 | F147: عامل | G147: القاهرة | H147: 0212121212122
A148: 155 | B148: عوض155 | C148: كراتيه | D148: 25252525252525 | E148: 45 | F148: عامل | G148: القاهرة | H148: 0212121212122
A149: 156 | B149: عوض156 | C149: كراتيه | D149: 25252525252525 | E149: 45 | F149: عامل | G149: القاهرة | H149: 0212121212122
A150: 157 | B150: عوض157 | C150: كراتيه | D150: 25252525252525 | E150: 45 | F150: عامل | G150: القاهرة | H150: 0212121212122
A151: 158 | B151: عوض158 | C151: كراتيه | D151: 25252525252525 | E151: 45 | F151: عامل | G151: القاهرة | H151: 0212121212122
A152: 159 | B152: عوض159 | C152: كراتيه | D152: 25252525252525 | E152: 45 | F152: عامل | G152: القاهرة | H152: 0212121212122
A153: 160 | B153: عوض160 | C153: كراتيه | D153: 25252525252525 | E153: 45 | F153: عامل | G153: القاهرة | H153: 0212121212122
A154: 161 | B154: عوض161 | C154: كراتيه | D154: 25252525252525 | E154: 45 | F154: عامل | G154: القاهرة | H154: 0212121212122
A155: 162 | B155: عوض162 | C155: كراتيه | D155: 25252525252525 | E155: 45 | F155: عامل | G155: القاهرة | H155: 0212121212122
A156: 163 | B156: عوض163 | C156: كراتيه | D156: 25252525252525 | E156: 45 | F156: عامل | G156: القاهرة | H156: 0212121212122
A157: 164 | B157: عوض164 | C157: كراتيه | D157: 25252525252525 | E157: 45 | F157: عامل | G157: القاهرة | H157: 0212121212122
A158: 165 | B158: عوض165 | C158: كراتيه | D158: 25252525252525 | E158: 45 | F158: عامل | G158: القاهرة | H158: 0212121212122
A159: 166 | B159: عوض166 | C159: كراتيه | D159: 25252525252525 | E159: 45 | F159: عامل | G159: القاهرة | H159: 0212121212122
A160: 167 | B160: عوض167 | C160: كراتيه | D160: 25252525252525 | E160: 45 | F160: عامل | G160: القاهرة | H160: 0212121212122
A161: 168 | B161: عوض168 | C161: كراتيه | D161: 25252525252525 | E161: 45 | F161: عامل | G161: القاهرة | H161: 0212121212122
A162: 169 | B162: عوض169 | C162: كراتيه | D162: 25252525252525 | E162: 45 | F162: عامل | G162: القاهرة | H162: 0212121212122
A163: 170 | B163: عوض170 | C163: كراتيه | D163: 25252525252525 | E163: 45 | F163: عامل | G163: القاهرة | H163: 0212121212122
A164: 171 | B164: عوض171 | C164: كراتيه | D164: 25252525252525 | E164: 45 | F164: عامل | G164: القاهرة | H164: 0212121212122
A165: 172 | B165: عوض172 | C165: كراتيه | D165: 25252525252525 | E165: 45 | F165: عامل | G165: القاهرة | H165: 0212121212122
A166: 173 | B166: عوض173 | C166: كراتيه | D166: 25252525252525 | E166: 45 | F166: عامل | G166: القاهرة | H166: 0212121212122
A167: 174 | B167: عوض174 | C167: كراتيه | D167: 25252525252525 | E167: 45 | F167: عامل | G167: القاهرة | H167: 0212121212122
A168: 175 | B168: عوض175 | C168: كراتيه | D168: 25252525252525 | E168: 45 | F168: عامل | G168: القاهرة | H168: 0212121212122
A169: 176 | B169: عوض176 | C169: كراتيه | D169: 25252525252525 | E169: 45 | F169: عامل | G169: القاهرة | H169: 0212121212122
A170: 177 | B170: عوض177 | C170: كراتيه | D170: 25252525252525 | E170: 45 | F170: عامل | G170: القاهرة | H170: 0212121212122
A171: 178 | B171: عوض178 | C171: كراتيه | D171: 25252525252525 | E171: 45 | F171: عامل | G171: القاهرة | H171: 0212121212122
A172: 179 | B172: عوض179 | C172: كراتيه | D172: 25252525252525 | E172: 45 | F172: عامل | G172: القاهرة | H172: 0212121212122
A173: 180 | B173: عوض180 | C173: كراتيه | D173: 25252525252525 | E173: 45 | F173: عامل | G173: القاهرة | H173: 0212121212122
A174: 181 | B174: عوض181 | C174: كراتيه | D174: 25252525252525 | E174: 45 | F174: عامل | G174: القاهرة | H174: 0212121212122
A175: 182 | B175: عوض182 | C175: كراتيه | D175: 25252525252525 | E175: 45 | F175: عامل | G175: القاهرة | H175: 0212121212122
A176: 183 | B176: عوض183 | C176: كراتيه | D176: 25252525252525 | E176: 45 | F176: عامل | G176: القاهرة | H176: 0212121212122
A177: 184 | B177: عوض184 | C177: كراتيه | D177: 25252525252525 | E177: 45 | F177: عامل | G177: القاهرة | H177: 0212121212122
A178: 185 | B178: عوض185 | C178: كراتيه | D178: 25252525252525 | E178: 45 | F178: عامل | G178: القاهرة | H178: 0212121212122
A179: 186 | B179: عوض186 | C179: كراتيه | D179: 25252525252525 | E179: 45 | F179: عامل | G179: القاهرة | H179: 0212121212122
A180: 187 | B180: عوض187 | C180: كراتيه | D180: 25252525252525 | E180: 45 | F180: عامل | G180: القاهرة | H180: 0212121212122
A181: 188 | B181: عوض188 | C181: كراتيه | D181: 25252525252525 | E181: 45 | F181: عامل | G181: القاهرة | H181: 0212121212122
A182: 189 | B182: عوض189 | C182: كراتيه | D182: 25252525252525 | E182: 45 | F182: عامل | G182: القاهرة | H182: 0212121212122
A183: 190 | B183: عوض190 | C183: كراتيه | D183: 25252525252525 | E183: 45 | F183: عامل | G183: القاهرة | H183: 0212121212122
A184: 191 | B184: عوض191 | C184: كراتيه | D184: 25252525252525 | E184: 45 | F184: عامل | G184: القاهرة | H184: 0212121212122
A185: 192 | B185: عوض192 | C185: كراتيه | D185: 25252525252525 | E185: 45 | F185: عامل | G185: القاهرة | H185: 0212121212122
A186: 193 | B186: عوض193 | C186: كراتيه | D186: 25252525252525 | E186: 45 | F186: عامل | G186: القاهرة | H186: 0212121212122
A187: 194 | B187: عوض194 | C187: كراتيه | D187: 25252525252525 | E187: 45 | F187: عامل | G187: القاهرة | H187: 0212121212122
A188: 195 | B188: عوض195 | C188: كراتيه | D188: 25252525252525 | E188: 45 | F188: عامل | G188: القاهرة | H188: 0212121212122
A189: 196 | B189: عوض196 | C189: كراتيه | D189: 25252525252525 | E189: 45 | F189: عامل | G189: القاهرة | H189: 0212121212122
A190: 197 | B190: عوض197 | C190: كراتيه | D190: 25252525252525 | E190: 45 | F190: عامل | G190: القاهرة | H190: 0212121212122
A191: 198 | B191: عوض198 | C191: كراتيه | D191: 25252525252525 | E191: 45 | F191: عامل | G191: القاهرة | H191: 0212121212122
A192: 199 | B192: عوض199 | C192: كراتيه | D192: 25252525252525 | E192: 45 | F192: عامل | G192: القاهرة | H192: 0212121212122
A193: 200 | B193: عوض200 | C193: كراتيه | D193: 25252525252525 | E193: 45 | F193: عامل | G193: القاهرة | H193: 0212121212122
A194: 201 | B194: عوض201 | C194: كراتيه | D194: 25252525252525 | E194: 45 | F194: عامل | G194: القاهرة | H194: 0212121212122
A195: 202 | B195: عوض202 | C195: كراتيه | D195: 25252525252525 | E195: 45 | F195: عامل | G195: القاهرة | H195: 0212121212122
A196: 203 | B196: عوض203 | C196: كراتيه | D196: 25252525252525 | E196: 45 | F196: عامل | G196: القاهرة | H196: 0212121212122
A197: 204 | B197: عوض204 | C197: كراتيه | D197: 25252525252525 | E197: 45 | F197: عامل | G197: القاهرة | H197: 0212121212122
A198: 205 | B198: عوض205 | C198: كراتيه | D198: 25252525252525 | E198: 45 | F198: عامل | G198: القاهرة | H198: 0212121212122
A199: 206 | B199: عوض206 | C199: كراتيه | D199: 25252525252525 | E199: 45 | F199: عامل | G199: القاهرة | H199: 0212121212122
A200: 207 | B200: عوض207 | C200: كراتيه | D200: 25252525252525 | E200: 45 | F200: عامل | G200: القاهرة | H200: 0212121212122
... 788 more rows

Sheet كشف حساب
D4: بالاسم | E4: عوض2 | F4: عوض5 | H4: الاجمالى الكلى
D6: المبلغ | F6: =SUMIF(مرحل!$B:$B,'كشف حساب'!$F$4,مرحل!$D:$D) -> 100 | H6: =SUM(مرحل!$D:$D) -> 11600

Sheet بيان
I1: 1002
B3: م | C3: الاسم | D3: النشاط | E3: قيمة الاشتراك | F3: مدة الاشتراك | G3: بداية النشاط
C4: عوض10
B7: م | C7: الاسم | D7: النشاط | E7: قيمة الاشتراك | F7: مدة الاشتراك | G7: بداية النشاط
B8: 2 | C8: عوض4 | D8: سباحة | E8: 5 | F8: 0 | G8: 2021-08-05
B9: 1000 | C9: عوض4 | D9: سباحة | E9: 100 | F9: 7 | G9: 2021-05-03
B10: 2 | C10: عوض4 | D10: سباحة | E10: 100 | F10: 7 | G10: 2021-03-05
B11: 2 | C11: عوض4 | D11: سباحة | E11: 100 | F11: 7 | G11: 2021-03-05
B12: 1000 | C12: عوض4 | D12: سباحة | E12: 100 | F12: 7 | G12: 2021-03-05

Sheet مسدد
B2: مبالغ مسددة
A3: الرقم | B3: الاسم | C3: مسدد | D3: التاريخ
A4: 1 | B4: 2 | C4: 3 | D4: 4
A5: 2 | B5: 3 | C5: 4 | D5: 5
A6: 44 | B6: 22222 | C6: 4 | D6: 555
